[Event "Caplin Hastings Masters 2023-24"]
[Site "Hastings"]
[Date "2023.12.30"]
[Round "3.43"]
[White "Rastogi, Nayan Keats"]
[Black "Suez-Panama, Gilles"]
[Result "1/2-1/2"]
[ECO "C11"]
[WhiteElo "1662"]
[BlackElo "1868"]
[Annotator "NA"]
[PlyCount "53"]
[EventDate "2023.12.18"]
[EventType "swiss"]
[EventCountry "ENG"]
[SourceTitle "playchess.com"]
[Source "ChessBase"]
[SourceQuality "1"]
[TimeControl "40/6000+30:3000+30"]

1. e4 {[%emt 0:00:04]} e6 {[%emt 0:00:12]} 2. d4 {[%emt 0:00:04]} d5 {[%emt 0:00:06]} 3. Nc3 {[%emt 0:00:06]} Nf6 {[%emt 0:00:10]} 4. e5 {[%emt 0:00:03]} Ng8 {[%emt 0:02:48]} 5. f4 {[%emt 0:02:53]} c5 {[%emt 0:00:29]} 6. Nf3 {[%emt 0:00:33]} Nc6 {[%emt 0:00:15]} 7. Be3 {[%emt 0:00:52]} cxd4 {[%emt 0:03:41]} 8. Nxd4 {[%emt 0:00:26]} Nh6 {[%emt 0:01:39]} 9. Qd2 {[%emt 0:13:44]} Bb4 {[%emt 0:07:50]} 10. a3 {[%emt 0:14:46]} Ba5 {[%emt 0:07:35]} 11. b4 {[%emt 0:05:39]} Bb6 {[%emt 0:05:03]} 12. Nxc6 {[%emt 0:05:35]} bxc6 {[%emt 0:01:30]} 13. Na4 {[%emt 0:02:01]} Bxe3 {[%emt 0:03:19]} 14. Qxe3 {[%emt 0:00:10]} O-O {[%emt 0:03:53]} 15. Be2 {[%emt 0:05:13]} Nf5 {[%emt 0:03:08]} 16. Qf2 {[%emt 0:01:29]} f6 {[%emt 0:03:21]} 17. exf6 {[%emt 0:10:40]} Qxf6 {[%emt 0:04:59]} 18. O-O {[%emt 0:01:06]} Qd4 {[%emt 0:21:09]} 19. Qxd4 {[%emt 0:06:34]} Nxd4 {[%emt 0:00:15]} 20. Bd3 {[%emt 0:00:16]} a5 {[%emt 0:01:38]} 21. Nc5 {[%emt 0:12:47]} axb4 {[%emt 0:10:56]} 22. axb4 {[%emt 0:00:51]} Rxa1 {[%emt 0:00:25]} 23. Rxa1 {[%emt 0:00:08]} Rxf4 {[%emt 0:00:23]} 24. c3 {[%emt 0:00:44]} Nb5 {[%emt 0:01:33]} 25. Bxb5 {[%emt 0:01:37]} cxb5 {[%emt 0:00:07]} 26. Ra8 {[%emt 0:01:00]} Rf8 {[%emt 0:00:13]} 27. Ra5 {[%emt 0:00:41]} 1/2-1/2

[Event "Caplin Hastings Masters 2023-24"]
[Site "Hastings"]
[Date "2023.12.30"]
[Round "3.44"]
[White "ONUOHA, Obioma"]
[Black "Metcalfe, Charlie P"]
[Result "1-0"]
[ECO "C01"]
[WhiteElo "1995"]
[BlackElo "1760"]
[Annotator "NA"]
[PlyCount "81"]
[EventDate "2023.12.18"]
[EventType "swiss"]
[EventCountry "ENG"]
[SourceTitle "playchess.com"]
[Source "ChessBase"]
[SourceQuality "1"]
[TimeControl "40/6000+30:3000+30"]

1. e4 {[%emt 0:00:16]} e6 {[%emt 0:00:01]} 2. d4 {[%emt 0:00:08]} d5 {[%emt 0:00:02]} 3. exd5 {[%emt 0:01:04]} exd5 {[%emt 0:00:01]} 4. Nf3 {[%emt 0:00:14]} Nc6 {[%emt 0:00:12]} 5. Be2 {[%emt 0:01:18]} Bd6 {[%emt 0:02:46]} 6. O-O {[%emt 0:00:15]} Nf6 {[%emt 0:06:48]} 7. Bg5 {[%emt 0:04:33]} O-O {[%emt 0:02:28]} 8. Nc3 {[%emt 0:01:09]} Ne7 {[%emt 0:02:13]} 9. Bxf6 {[%emt 0:05:26]} gxf6 {[%emt 0:00:02]} 10. Re1 {[%emt 0:01:01]} c6 {[%emt 0:01:48]} 11. Bd3 {[%emt 0:02:49]} Bf5 {[%emt 0:04:44]} 12. Nh4 {[%emt 0:13:07]} Bxd3 {[%emt 0:03:37]} 13. Qxd3 {[%emt 0:00:09]} Qd7 {[%emt 0:00:02]} 14. Qf3 {[%emt 0:05:54]} Ng6 {[%emt 0:20:50]} 15. Nf5 {[%emt 0:01:11]} Bf4 {[%emt 0:09:56]} 16. Qg4 {[%emt 0:02:54]} Kh8 {[%emt 0:00:25]} 17. Re7 {[%emt 0:02:02]} Qc8 {[%emt 0:05:29]} 18. Rae1 {[%emt 0:03:31]} Bd6 {[%emt 0:02:37]} 19. R7e3 {[%emt 0:05:33]} Rg8 {[%emt 0:02:52]} 20. Rh3 {[%emt 0:03:49]} Rg7 {[%emt 0:02:08]} 21. f3 {[%emt 0:03:32]} Qf8 {[%emt 0:12:25]} 22. Nxg7 {[%emt 0:01:42]} Qxg7 {[%emt 0:00:01]} 23. Qd7 {[%emt 0:05:24]} Bf4 {[%emt 0:06:05]} 24. Ne2 {[%emt 0:13:41]} Bd2 {[%emt 0:02:50]} 25. Rd1 {[%emt 0:00:36]} Be3+ {[%emt 0:01:10]} 26. Kh1 {[%emt 0:01:10]} Qg8 {[%emt 0:05:42]} 27. Qf5 {[%emt 0:01:10]} Qd8 {[%emt 0:04:07]} 28. Ng3 {[%emt 0:01:54]} Bg5 {[%emt 0:01:03]} 29. Nh5 {[%emt 0:04:56]} Qe7 {[%emt 0:02:19]} 30. f4 {[%emt 0:12:59]} Qe2 {[%emt 0:01:28]} 31. Rg1 {[%emt 0:03:32]} Nh4 {[%emt 0:01:53]} 32. Nxf6 {[%emt 0:00:58]} Qh5 {[%emt 0:02:40]} 33. Nxh5 {[%emt 0:03:42]} Nxf5 {[%emt 0:00:02]} 34. fxg5 {[%emt 0:00:20]} Nxd4 {[%emt 0:00:58]} 35. c3 {[%emt 0:00:48]} Ne6 {[%emt 0:00:09]} 36. Rg3 {[%emt 0:00:34]} Nc5 {[%emt 0:00:17]} 37. Nf6 {[%emt 0:01:02]} Kg7 {[%emt 0:00:13]} 38. h4 {[%emt 0:00:12]} h6 {[%emt 0:00:07]} 39. Rf1 {[%emt 0:00:19]} Rd8 {[%emt 0:01:25]} 40. gxh6+ {[%emt 0:00:28]} Kxh6 {[%emt 0:00:03]} 41. Rf5 {[%emt 0:50:13]} 1-0

[Event "Caplin Hastings Masters 2023-24"]
[Site "Hastings"]
[Date "2023.12.30"]
[Round "3.45"]
[White "Prudent, Sylvio"]
[Black "Ruane, Brendan J"]
[Result "0-1"]
[ECO "A01"]
[WhiteElo "1639"]
[BlackElo "1823"]
[Annotator "NA RC"]
[PlyCount "90"]
[EventDate "2023.12.18"]
[EventType "swiss"]
[EventCountry "ENG"]
[SourceTitle "playchess.com"]
[Source "ChessBase"]
[SourceQuality "1"]
[TimeControl "40/6000+30:3000+30"]

1. b3 {[%emt 0:00:03]} e5 {[%emt 0:01:02]} 2. Bb2 {[%emt 0:00:09]} Nc6 {[%emt 0:00:10]} 3. e3 {[%emt 0:00:12]} Nf6 {[%emt 0:00:14]} 4. Nf3 {[%emt 0:00:58]} Bd6 {[%emt 0:00:30]} 5. c4 {[%emt 0:02:41]} Qe7 {[%emt 0:00:20]} 6. Be2 {[%emt 0:02:22]} O-O {[%emt 0:05:10]} 7. O-O {[%emt 0:00:13]} Re8 {[%emt 0:04:15]} 8. d3 {[%emt 0:08:59]} Qd8 {[%emt 0:01:36]} 9. Nc3 {[%emt 0:04:52]} Bf8 {[%emt 0:00:33]} 10. e4 {[%emt 0:00:11]} d6 {[%emt 0:13:23]} 11. h3 {[%emt 0:03:26]} g6 {[%emt 0:06:34]} 12. Bc1 {[%emt 0:01:29]} Nd4 {[%emt 0:11:06]} 13. Bg5 {[%emt 0:17:58]} c6 {[%emt 0:02:49]} 14. Qd2 {[%emt 0:06:04]} Ne6 {[%emt 0:06:44]} 15. Bh4 {[%emt 0:02:48]} Bg7 {[%emt 0:01:26]} 16. Kh1 {[%emt 0:15:22]} Qc7 {[%emt 0:00:28]} 17. Rac1 {[%emt 0:04:01]} Nf4 {[%emt 0:04:09]} 18. Nh2 {[%emt 0:03:20]} Nd7 {[%emt 0:19:52]} 19. Bg4 {[%emt 0:02:13]} Nc5 {[%emt 0:02:33]} 20. Bg5 {[%emt 0:07:50]} Ncxd3 {[%emt 0:03:43]} 21. Rcd1 {[%emt 0:00:06]} h5 {[%emt 0:09:56]} 22. Bxc8 {[%emt 0:03:21]} Raxc8 {[%emt 0:03:17]} 23. g3 {[%emt 0:02:17]} Nxh3 {[%emt 0:03:05]} 24. Be3 {[%emt 0:02:23]} Nc5 {[%emt 0:00:18]} 25. Kg2 {[%emt 0:01:03]} Nf4+ {[%emt 0:03:07]} 26. gxf4 {[%emt 0:00:44]} exf4 {[%emt 0:00:07]} 27. Bxf4 {[%emt 0:02:24]} Nxe4 {[%emt 0:01:47]} 28. Nxe4 {[%emt 0:00:18]} Rxe4 {[%emt 0:00:05]} 29. Bxd6 {[%emt 0:02:19]} Qd7 {[%emt 0:00:04]} 30. Qc2 {[%emt 0:02:52]} Qf5 {[%emt 0:00:15]} 31. Kh1 {[%emt 0:02:14]} Rce8 {[%emt 0:00:04]} 32. Qd3 {[%emt 0:01:14]} Qe6 {[%emt 0:00:22]} 33. Bc5 {[%emt 0:01:55]} b6 {[%emt 0:00:55]} 34. Be3 {[%emt 0:00:20]} Rh4 {[%emt 0:00:36]} 35. Bg5 {[%emt 0:01:00]} Rh3 {[%emt 0:00:52]} 36. Qd2 {[%emt 0:01:09]} Qf5 {[%emt 0:02:08]} 37. Kg2 {[%emt 0:02:46]} Re5 {[%emt 0:01:39]} 38. Bf4 {[%emt 0:02:20]} Re4 {[%emt 0:00:21]} 39. Bg3 {[%emt 0:02:41]} h4 {[%emt 0:00:13]} 40. Qd8+ {[%emt 0:01:01]} Kh7 {[%emt 0:00:09]} 41. Qd7 {[%emt 0:14:52]} Re6 {[%emt 0:13:59]} 42. Qd3 {[%emt 0:00:00]} Re4 {[%emt 0:10:56]} 43. Qd7 {[%emt 0:14:47]} Rxh2+ {[%emt 0:08:00]} 44. Bxh2 {[%emt 0:00:50]} h3+ {[%emt 0:00:11]} 45. Kg3 {[%emt 0:04:40]} Rg4+ {[%emt 0:00:53]} 0-1

[Event "Caplin Hastings Masters 2023-24"]
[Site "Hastings"]
[Date "2023.12.30"]
[Round "3.46"]
[White "Kim, Sumin"]
[Black "Larkin, Benjamin"]
[Result "0-1"]
[ECO "D91"]
[WhiteElo "1358"]
[BlackElo "1814"]
[Annotator "NA"]
[PlyCount "75"]
[EventDate "2023.12.18"]
[EventType "swiss"]
[EventCountry "ENG"]
[SourceTitle "playchess.com"]
[Source "ChessBase"]
[SourceQuality "1"]
[TimeControl "40/6000+30:3000+30"]

1. d4 {[%emt 0:00:03]} Nf6 {[%emt 0:00:05]} 2. c4 {[%emt 0:00:18]} g6 {[%emt 0:00:06]} 3. Nc3 {[%emt 0:00:29]} d5 {[%emt 0:00:05]} 4. Nf3 {[%emt 0:02:29]} Bg7 {[%emt 0:00:08]} 5. Bg5 {[%emt 0:01:09]} Ne4 {[%emt 0:00:12]} 6. cxd5 {[%emt 0:02:34]} Nxg5 {[%emt 0:00:13]} 7. Nxg5 {[%emt 0:02:47]} e6 {[%emt 0:00:06]} 8. Qd2 {[%emt 0:04:12]} exd5 {[%emt 0:00:07]} 9. Qe3+ {[%emt 0:00:51]} Kf8 {[%emt 0:00:01]} 10. Qf4 {[%emt 0:01:53]} Bf6 {[%emt 0:06:40]} 11. h4 {[%emt 0:04:20]} c6 {[%emt 0:01:02]} 12. e4 {[%emt 0:14:12]} h6 {[%emt 0:07:04]} 13. Nxf7 {[%emt 0:11:37]} Kxf7 {[%emt 0:00:05]} 14. e5 {[%emt 0:00:44]} Re8 {[%emt 0:03:21]} 15. O-O-O {[%emt 0:00:24]} Kg7 {[%emt 0:01:03]} 16. exf6+ {[%emt 0:08:37]} Qxf6 {[%emt 0:00:48]} 17. Qxf6+ {[%emt 0:14:07]} Kxf6 {[%emt 0:00:14]} 18. Be2 {[%emt 0:04:49]} b6 {[%emt 0:05:37]} 19. Rhe1 {[%emt 0:04:47]} Be6 {[%emt 0:02:52]} 20. Rd3 {[%emt 0:03:20]} Bf5 {[%emt 0:03:11]} 21. Rf3 {[%emt 0:00:49]} Kg7 {[%emt 0:00:24]} 22. Rg3 {[%emt 0:02:00]} Nd7 {[%emt 0:00:17]} 23. Kd2 {[%emt 0:02:21]} Nf6 {[%emt 0:00:18]} 24. b4 {[%emt 0:04:10]} Ne4+ {[%emt 0:00:53]} 25. Nxe4 {[%emt 0:00:27]} Rxe4 {[%emt 0:00:07]} 26. Bd3 {[%emt 0:08:59]} Rxd4 {[%emt 0:02:26]} 27. Kc3 {[%emt 0:01:08]} Rxd3+ {[%emt 0:00:26]} 28. Rxd3 {[%emt 0:00:08]} Bxd3 {[%emt 0:00:05]} 29. Kxd3 {[%emt 0:00:04]} Kf7 {[%emt 0:01:42]} 30. g4 {[%emt 0:00:34]} Re8 {[%emt 0:00:17]} 31. Rxe8 {[%emt 0:00:25]} Kxe8 {[%emt 0:00:03]} 32. Kd4 {[%emt 0:00:18]} Ke7 {[%emt 0:16:15]} 33. b5 {[%emt 0:04:32]} cxb5 {[%emt 0:00:20]} 34. Kxd5 {[%emt 0:00:29]} b4 {[%emt 0:00:48]} 35. f4 {[%emt 0:01:00]} a5 {[%emt 0:00:12]} 36. Kc4 {[%emt 0:04:03]} h5 {[%emt 0:00:30]} 37. g5 {[%emt 0:00:14]} Ke6 {[%emt 0:00:06]} 38. Kd4 {[%emt 0:02:15]} 0-1

[Event "Caplin Hastings Masters 2023-24"]
[Site "Hastings"]
[Date "2023.12.30"]
[Round "3.47"]
[White "Damodaran, Patrick"]
[Black "Dewangan, Aayush"]
[Result "1/2-1/2"]
[ECO "D86"]
[WhiteElo "1798"]
[BlackElo "1655"]
[Annotator "NA"]
[PlyCount "120"]
[EventDate "2023.12.18"]
[EventType "swiss"]
[EventCountry "ENG"]
[SourceTitle "playchess.com"]
[Source "ChessBase"]
[SourceQuality "1"]
[TimeControl "40/6000+30:3000+30"]

1. d4 {[%emt 0:00:12]} Nf6 {[%emt 0:00:13]} 2. c4 {[%emt 0:02:35]} g6 {[%emt 0:00:08]} 3. Nc3 {[%emt 0:03:47]} d5 {[%emt 0:00:03]} 4. cxd5 {[%emt 0:02:57]} Nxd5 {[%emt 0:00:02]} 5. e4 {[%emt 0:02:35]} Nxc3 {[%emt 0:00:07]} 6. bxc3 {[%emt 0:00:55]} Bg7 {[%emt 0:00:06]} 7. Bc4 {[%emt 0:03:19]} O-O {[%emt 0:00:20]} 8. Ne2 {[%emt 0:03:19]} Nc6 {[%emt 0:00:08]} 9. Be3 {[%emt 0:01:18]} b6 {[%emt 0:00:06]} 10. O-O {[%emt 0:03:56]} Bb7 {[%emt 0:00:06]} 11. f4 {[%emt 0:02:42]} Qd6 {[%emt 0:30:07]} 12. f5 {[%emt 0:11:10]} Na5 {[%emt 0:01:42]} 13. Bd3 {[%emt 0:01:15]} Rad8 {[%emt 0:05:51]} 14. Nf4 {[%emt 0:06:53]} e5 {[%emt 0:33:25]} 15. fxe6 {[%emt 0:00:47]} fxe6 {[%emt 0:00:24]} 16. Qg4 {[%emt 0:02:59]} e5 {[%emt 0:01:14]} 17. Qe6+ {[%emt 0:01:20]} Kh8 {[%emt 0:02:31]} 18. Qxd6 {[%emt 0:00:32]} cxd6 {[%emt 0:02:13]} 19. Ne6 {[%emt 0:02:12]} Rxf1+ {[%emt 0:00:10]} 20. Rxf1 {[%emt 0:00:11]} Rd7 {[%emt 0:01:57]} 21. d5 {[%emt 0:01:38]} h6 {[%emt 0:02:30]} 22. Bb5 {[%emt 0:03:28]} Re7 {[%emt 0:00:40]} 23. Nd8 {[%emt 0:01:58]} Kg8 {[%emt 0:01:39]} 24. Bc1 {[%emt 0:02:06]} a6 {[%emt 0:01:29]} 25. Nxb7 {[%emt 0:01:20]} Nxb7 {[%emt 0:00:08]} 26. Bxa6 {[%emt 0:03:10]} Nc5 {[%emt 0:00:06]} 27. Bb5 {[%emt 0:00:58]} Nxe4 {[%emt 0:00:45]} 28. c4 {[%emt 0:02:03]} Nc5 {[%emt 0:07:06]} 29. Be3 {[%emt 0:01:38]} g5 {[%emt 0:01:43]} 30. Bxc5 {[%emt 0:00:51]} bxc5 {[%emt 0:00:25]} 31. a4 {[%emt 0:03:00]} e4 {[%emt 0:03:12]} 32. Kf2 {[%emt 0:03:46]} e3+ {[%emt 0:03:02]} 33. Ke2 {[%emt 0:00:12]} Bc3 {[%emt 0:00:59]} 34. Rf3 {[%emt 0:02:26]} Kg7 {[%emt 0:04:46]} 35. Rf1 {[%emt 0:01:32]} Rf7 {[%emt 0:01:26]} 36. Rxf7+ {[%emt 0:04:22]} Kxf7 {[%emt 0:00:05]} 37. Kxe3 {[%emt 0:00:11]} Kf6 {[%emt 0:00:04]} 38. Kf3 {[%emt 0:00:58]} h5 {[%emt 0:00:20]} 39. Be8 {[%emt 0:01:59]} h4 {[%emt 0:00:03]} 40. Kg4 {[%emt 0:00:19]} Bd2 {[%emt 0:01:54]} 41. Kh5 {[%emt 0:55:16]} Bc3 {[%emt 0:52:01]} 42. Kh6 {[%emt 0:01:13]} Bd2 {[%emt 0:00:40]} 43. Kh7 {[%emt 0:01:32]} Ke7 {[%emt 0:00:47]} 44. Bh5 {[%emt 0:00:55]} Bf4 {[%emt 0:00:00]} 45. a5 {[%emt 0:00:00]} Kd7 {[%emt 0:00:00]} 46. Be8+ {[%emt 0:00:00]} Kc7 {[%emt 0:00:00]} 47. h3 {[%emt 0:00:00]} Kb7 {[%emt 0:00:00]} 48. Bb5 {[%emt 0:00:00]} Bd2 {[%emt 0:00:00]} 49. Kg6 {[%emt 0:00:00]} Bxa5 {[%emt 0:00:00]} 50. Kxg5 {[%emt 0:00:00]} Be1 {[%emt 0:00:00]} 51. Kf6 {[%emt 0:00:00]} Bg3 {[%emt 0:00:00]} 52. Ba4 {[%emt 0:00:00]} Ka8 {[%emt 0:00:00]} 53. Bd1 {[%emt 0:00:00]} Ka7 {[%emt 0:00:00]} 54. Bf3 {[%emt 0:00:00]} Kb7 {[%emt 0:00:00]} 55. Kf5 {[%emt 0:00:00]} Ka7 {[%emt 0:00:00]} 56. Ke4 {[%emt 0:00:00]} Kb7 {[%emt 0:00:00]} 57. Kd3 {[%emt 0:00:00]} Kc7 {[%emt 0:00:00]} 58. Bh5 {[%emt 0:00:00]} Kd7 {[%emt 0:00:00]} 59. Ke4 {[%emt 0:00:00]} Ke7 {[%emt 0:00:00]} 60. Kf5 {[%emt 0:00:00]} Kd7 {[%emt 0:00:00]} 1/2-1/2

[Event "Caplin Hastings Masters 2023-24"]
[Site "Hastings"]
[Date "2023.12.31"]
[Round "4.1"]
[White "Nielsen, Andre"]
[Black "Zhang, Pengxiang"]
[Result "0-1"]
[ECO "C13"]
[WhiteElo "2239"]
[BlackElo "2558"]
[Annotator "TA"]
[PlyCount "114"]
[EventDate "2023.12.18"]
[EventType "swiss"]
[EventCountry "ENG"]
[SourceTitle "playchess.com"]
[Source "ChessBase"]
[SourceQuality "1"]
[TimeControl "40/6000+30:3000+30"]

{[%evp 15,114,15,8,16,16,23,17,16,18,18,11,0,16,0,4,0,33,20,25,23,21,-75,-76,-116,-12,-111,-109,-179,-142,-162,-142,-139,-132,-172,-146,-162,-169,-150,-90,-131,-85,-307,-302,-297,-291,-287,-273,-298,-302,-433,-415,-418,-400,-381,-381,-381,-370,-389,-377,-522,-508,-366,-364,-493,-476,-475,-514,-520,-504,-500,-499,-483,-359,-775,-758,-712,-629,-777,-774,-654,-652,-580,-508,-1034,-864,-1189,-2847,-1225,-1785,-6087,-5427,-1666,-1666,-29983,-29984,-29984,-29985,-29991,-29992,-29992,-29993]} 1. e4 {[%emt 0:00:07]} e6 {[%emt 0:00:05]} 2. d4 {[%emt 0:00:24]} d5 {[%emt 0:00:04]} 3. Nc3 {[%emt 0:00:20]} Nf6 {[%emt 0:00:04]} 4. Bg5 {[%emt 0:00:10]} dxe4 {[%emt 0:00:05]} 5. Nxe4 {[%emt 0:01:29]} Be7 {[%emt 0:00:05]} 6. Nxf6+ {[%emt 0:02:35]} Bxf6 {[%emt 0:00:23]} 7. Bxf6 {[%emt 0:00:08]} Qxf6 {[%emt 0:00:04]} 8. Nf3 {[%emt 0:00:13]} O-O {[%emt 0:00:49][%cal Oc7c5]} 9. Qd3 {[%emt 0:00:21] is the new trend. C13: French: Classical System: 4 Bg5 Be7, Alekhine-Chatard Attack.} c5 {[%emt 0:01:18]} 10. O-O-O {[%emt 0:00:22]} ({Reject} 10. dxc5 Qxb2 11. Qd4 Qxd4 12. Nxd4 e5 $15) 10... Rd8 {[%emt 0:03:55]} 11. Qe4 {[%emt 0:00:45] The position is equal.} Nc6 {[%emt 0:01:21]} 12. Bd3 {[%emt 0:00:58]} Qh6+ {[%emt 0:07:50]} 13. Kb1 {[%emt 0:00:10]} cxd4 {[%emt 0:07:19]} 14. Rhe1 {[%emt 0:14:36]} Bd7 {[%emt 0:18:35]} 15. g4 {[%emt 0:01:08] [#]} Nb4 $146 {[%emt 0:11:07] Strongly threatening ...Bc6.} (15... Re8 $5 {[%cal Re6e5]}) ({Predecessor:} 15... Rac8 16. g5 Qh5 17. a3 Re8 18. Nxd4 Nxd4 19. Qxd4 Bc6 20. h4 e5 21. Qxa7 Bf3 {½-½ Kevlishvili,R (2535)-Ozenir,E (2391) Fort Lauderdale 1000 GM GM 11 2023 (1)}) 16. Nxd4 {[%emt 0:23:39]} Bc6 {[%emt 0:22:52]} 17. Nxc6 {[%emt 0:03:40]} Nxc6 {[%emt 0:00:06]} 18. Bb5 {[%emt 0:26:01]} (18. Qg2 $11) 18... Qxh2 $17 {[%emt 0:03:45]} 19. f4 {[%emt 0:12:30] [#]} Rxd1+ $1 {[%emt 0:04:06]} 20. Rxd1 {[%emt 0:00:09]} Rd8 $40 {[%emt 0:00:03][%mdl 128] Black goes for the king.} 21. Rxd8+ Nxd8 {[%emt 0:00:01][%mdl 4096] Endgame KQB-KQN} 22. Qf3 {[%emt 0:12:48] aiming for Qd1.} Qg1+ {[%emt 0:10:56]} 23. Bf1 {[%emt 0:00:06]} g6 {[%emt 0:00:04]} 24. a4 {[%emt 0:01:46] [#]} h5 $1 {[%emt 0:07:08][%mdl 512]} 25. gxh5 {[%emt 0:00:50]} gxh5 {[%emt 0:00:02]} 26. Ka2 {[%emt 0:01:10][%cal Of3h5]} Qd4 {[%emt 0:01:30]} ({Better is} 26... Nc6 {And now ...Qg4 would win.} 27. Bg2 Nb4+ 28. Kb3 Nd5) 27. b3 {[%emt 0:01:14]} Nc6 {[%emt 0:00:06]} (27... Qc5 $142 28. c3 Nc6) 28. f5 $2 {[%emt 0:02:13] This costs White the game.} (28. Qxh5 $17 Qxf4 29. Qh3) 28... Qg4 $19 {[%emt 0:04:00]} 29. Be2 {[%emt 0:03:44]} exf5 {[%emt 0:04:25]} ({Inferior is} 29... Qxf5 30. Qxf5 exf5 31. Bxh5 $17) 30. Qe3 {[%emt 0:00:09] Wards off Nd4} Qe4 {[%emt 0:02:06]} 31. Qg5+ {[%emt 0:00:35]} Kf8 {[%emt 0:00:01]} 32. Bd3 {[%emt 0:00:26]} (32. Qh6+ {is a better defense.} Ke8 33. Qh8+ Ke7 34. Bd3 Nb4+ 35. Ka3 Nxd3 36. cxd3 Qxd3 37. Qxh5) 32... Nb4+ {[%emt 0:00:31]} 33. Ka3 {[%emt 0:01:15]} Nxd3 {[%emt 0:00:10]} 34. Qd8+ {[%emt 0:00:25] [#]} Qe8 $1 {[%emt 0:00:03]} 35. Qxd3 {[%emt 0:00:06] KQ-KQ} Qe7+ {[%emt 0:00:29]} 36. Ka2 {[%emt 0:00:52]} Qf6 {[%emt 0:02:18]} 37. Qf3 {[%emt 0:00:25]} f4 {[%emt 0:00:03]} 38. Qxh5 {[%emt 0:00:41]} f3 {[%emt 0:00:08] ...f2 would be deadly.} 39. Qc5+ {[%emt 0:00:05]} Kg7 {[%emt 0:00:24]} 40. Qg1+ {[%emt 0:00:07]} Qg6 {[%emt 0:01:00]} 41. Qd4+ {[%emt 0:50:25]} f6 {[%emt 0:04:28]} 42. Qd7+ {[%emt 0:00:00]} Kh6 {[%emt 0:00:27]} 43. Qh3+ {[%emt 0:00:00]} Qh5 {[%emt 0:00:09]} 44. Qg3 {[%emt 0:00:00]} (44. Qe6 Kg5 45. Qe3+ Kh4 46. Qf2+ Kh3 47. Qf1+ Kg4 48. Qg1+ Kf5 49. Qf2) 44... Qf5 {[%emt 0:03:46]} 45. Qh4+ {[%emt 0:00:00]} Kg6 {[%emt 0:00:12] Hoping for ...f2.} 46. Qg3+ {[%emt 0:00:00]} Kh5 {[%emt 0:00:05]} 47. Qh2+ {[%emt 0:00:00]} Kg4 {[%emt 0:00:06] White must now prevent ...Qc5.} 48. Qg1+ {[%emt 0:00:00]} Kf4 {[%emt 0:00:32]} 49. Qd4+ {[%emt 0:00:00]} (49. Qf2 $142 Qe4 50. Qh4+ Kf5 51. Qh3+ Qg4 52. Qf1) 49... Qe4 {[%emt 0:02:07]} 50. Qxf6+ {[%emt 0:00:00]} Ke3 {[%emt 0:00:06]} 51. Qg5+ {[%emt 0:00:00]} Ke2 {[%emt 0:00:32][%cal Of3f2]} 52. Qb5+ {[%emt 0:00:00]} Kd2 {[%emt 0:00:55]} 53. Qa5+ {[%emt 0:00:00]} Kd1 {[%emt 0:04:00] ( -> ...f2)} 54. Qxa7 {[%emt 0:00:00]} Qxc2+ {[%emt 0:02:27] Black mates.} 55. Ka3 {[%emt 0:00:00]} Qc1+ {[%emt 0:01:01]} 56. Ka2 {[%emt 0:00:00]} Qd2+ {[%emt 0:00:21]} 57. Ka3 {[%emt 0:00:00]} f2 {[%emt 0:00:23] Weighted Error Value: White=0.65/Black=0.05 (flawless)} 0-1